Cogmind - Beta 12 @@@ ROGUE MODE // 2023.03.04 @ 11:38:17 Player: Shin Result: Destroyed by S-43 Plague with Heavy Machine Gun Performance ------------- Evolutions (8) 4000 Regions Visited (21) 4200 Robots Destroyed (178) 890 Value Destroyed (6811) 6811 Prototype IDs (11) 220 Alien Tech Used (0) 0 Bonus (2137) 2137 TOTAL SCORE: 18258 Bonus ------- High Alert Combat Kills 521 Follower Combat Kills 801 Aligned with FarCom 300 MAIN.C Attacked Warlord 500 Warlord Defense Kills 704 Friendly Fire -689 Cogmind --------- Core Integrity 0/1450 Matter 232/300 Energy 99/100 System Corruption 3% Temperature Cool (0) Movement Core (50) Location -2/Research Parts ------- > --- POWER (2) -------- (None) > --- PROPULSION (6) --- (None) > --- UTILITY (10) ----- Advanced Targeting Computer > --- WEAPON (5) ------- (None) > --- INVENTORY (5) ---- Light Particle Reactor Micro Antimatter Reactor Superbattery (1500) Antimissile System Compact Linear Accelerator Peak State ------------ > --- POWER ------------ Antimatter Reactor Particle Reactor > --- PROPULSION ------- Myomer Leg Myomer Leg Myomer Leg Myomer Leg Myomer Leg Centrium Leg > --- UTILITY ---------- Advanced Cryofiber Web Advanced Heat Sink High-capacity Storage Unit Armor Integrity Analyzer Hardened Light Armor Plating Hardened Light Armor Plating Improved Focal Shield Makeshift Hacking Suite > --- WEAPON ----------- Quantum Rifle Matter Neutralizer Matter Neutralizer Matter Neutralizer Linear Accelerator > --- INVENTORY -------- Myomer Leg Advanced Power Amplifier Advanced Thermal Generator Superbattery Recoil Nullifier Precision Matter Filter Energy Filter Weapon Cycler Advanced Phase Shifter Improved Hardlight Generator Improved Force Field Plasma Storm Matter Neutralizer [Rating: 139] Favorites ----------- Power Reinforced Fission Core Engine Heavy Ion Engine Power Core Reinforced Fission Core Reactor Antimatter Reactor Propulsion Armored Treads Treads Armored Treads Leg Myomer Leg Wheel Compact Wheel Hover Unit Improved Antigrav System Flight Unit Impulse Thruster Array Utility High-capacity Storage Unit Device Advanced Heat Sink Storage High-capacity Storage Unit Processor Armor Integrity Analyzer Hackware Hacking Suite Protection Hardened Heavy Armor Plating Weapon Assault Rifle Energy Gun Beamcaster Energy Cannon Plasma Cannon Ballistic Gun Assault Rifle Ballistic Cannon Magnetic Acceleration Cannon Launcher Thermoblaster Slashing Weapon Falx Special Melee Weapon Improved Datajack Build | -11 -10 -10 -10 -9 -8 -7 -6 -6 -6 -5 -5 -5 -5 -4 -4 -4 -4 -4 -4 -3 -2 ------- Run | Jun Mat Min Exi Min Mat Fac Fac Low Low Fac Upp Upp War Pro Fac Was Fac Upp Upp Res Res Slots Evolved 16 | . . . . . 4 2 2 . . 2 . . . . 2 . . . . 2 2 Power 1 | . . . . . . . . . . 1 . . . . . . . . . . . Propulsion 4 | . . . . . 2 . . . . . . . . . . . . . . 2 . Utility 8 | . . . . . 2 2 2 . . . . . . . . . . . . . 2 Weapon 3 | . . . . . . . . . . 1 . . . . 2 . . . . . . Parts Attached 251 | . 10 . 7 6 17 9 11 3 12 3 45 10 19 4 11 9 3 . 7 35 30 Power 28 | . 3 . . . 1 . . 1 1 . 6 1 2 1 . . 1 . . 3 8 Engine 7 | . 3 . . . 1 . . . 1 . 1 . . . . . . . . 1 . Core 11 | . . . . . . . . 1 . . 5 1 2 1 . . . . . . 1 Reactor 10 | . . . . . . . . . . . . . . . . . 1 . . 2 7 Propulsion 52 | . 1 . . 2 5 1 . . 3 . 4 6 4 . 6 4 2 . . 10 4 Treads 18 | . . . . . 4 . . . 3 . . 6 4 . . 1 . . . . . Leg 20 | . 1 . . 2 . . . . . . 1 . . . 4 3 1 . . 8 . Wheel 10 | . . . . . 1 1 . . . . 3 . . . 2 . . . . 1 2 Hover 3 | . . . . . . . . . . . . . . . . . 1 . . . 2 Flight 1 | . . . . . . . . . . . . . . . . . . . . 1 . Utility 75 | . 2 . 5 . 5 4 4 2 3 2 16 . 3 2 2 3 . . 1 10 11 Device 50 | . 1 . 1 . 3 3 3 2 2 1 10 . 2 1 2 1 . . . 9 9 Storage 7 | . 1 . 3 . . . . . . . 2 . . . . . . . . 1 . Processor 5 | . . . 1 . . . 1 . . . 2 . . . . . . . . . 1 Hackware 2 | . . . . . . . . . . 1 . . . . . . . . 1 . . Protection 11 | . . . . . 2 1 . . 1 . 2 . 1 1 . 2 . . . . 1 Artifact . | . . . . . . . . . . . . . . . . . . . . . . Weapon 96 | . 4 . 2 4 6 4 7 . 5 1 19 3 10 1 3 2 . . 6 12 7 Energy Gun 17 | . . . . . . . . . . . 5 . 1 . 2 1 . . 1 6 1 Energy Cannon 20 | . . . . 1 3 2 2 . 2 . 1 . . . . . . . 4 3 2 Ballistic Gun 20 | . 2 . 2 2 3 2 . . . . 3 1 4 . . . . . 1 . . Ballistic Cannon 14 | . . . . . . . 2 . 1 1 3 1 1 . . . . . . 2 3 Launcher 15 | . 2 . . 1 . . . . 2 . 3 1 3 1 . 1 . . . 1 . Special Weapon . | . . . . . . . . . . . . . . . . . . . . . . Impact Weapon . | . . . . . . . . . . . . . . . . . . . . . . Slashing Weapon 8 | . . . . . . . 3 . . . 3 . . . 1 . . . . . 1 Piercing Weapon . | . . . . . . . . . . . . . . . . . . . . . . Special Melee Weapon 2 | . . . . . . . . . . . 1 . 1 . . . . . . . . Unidentified Prototypes 9 | . 1 . 2 . 1 . . . . . 1 . . . 1 1 . . . . 2 Corrupted Parts 6 | . . . . . . . . . 1 . . 5 . . . . . . . . . System Corruption 36 | . . . . . . . . . 5 . . 31 . . . . . . . . . Parts Lost 81 | . . . . . . . . . 1 . 21 2 8 1 5 . . . . 25 18 Power 12 | . . . . . . . . . . . 3 . 1 . . . . . . 5 3 Propulsion 24 | . . . . . . . . . 1 . 7 . 2 . 2 . . . . 8 4 Utility 23 | . . . . . . . . . . . 4 . 4 . 1 . . . . 8 6 Weapon 22 | . . . . . . . . . . . 7 2 1 1 2 . . . . 4 5 Highest Loss Streak 13 | . . . . . . . . . 1 . 9 1 7 1 5 . . . . 8 13 To Critical Strikes 2 | . . . . . . . . . . . . . . 1 . . . . . . 1 Average Slot Usage (%) 87 | . 97 100 99 99 96 91 93 93 92 87 82 85 95 91 71 80 82 84 92 84 37 Engine 4 | . 14 14 14 14 9 7 6 4 2 5 . . . . . . . . . 1 . Core 4 | . . . . . . . . 1 3 . 9 10 11 11 10 10 8 5 5 . . Treads 10 | . . . . . 34 23 20 20 25 23 2 11 22 17 4 . . . . . . Leg 8 | . 28 28 28 27 . . . . . . 3 3 . . 8 20 20 21 21 24 . Wheel 1 | . . . . . . 6 6 6 . . 3 . . . 1 . . . . . 2 Device 16 | . 11 14 13 14 18 22 26 26 25 19 17 17 12 14 18 14 10 10 10 14 10 Storage 6 | . 14 14 14 14 9 7 6 6 6 5 5 5 5 5 5 5 5 5 5 4 . Processor 5 | . . . . . . . 6 6 6 5 12 11 11 11 6 5 5 5 5 3 . Hackware 2 | . . . . . . . . . . 2 5 5 5 5 5 5 5 5 5 3 . Protection 4 | . . . . . 6 7 6 6 6 5 1 5 8 4 5 7 15 15 15 6 3 Energy Gun 2 | . . . . . . . . . . . 7 8 1 . . 4 4 5 4 2 . Energy Cannon 3 | . . . . 2 4 13 6 . 5 5 2 . . . . . . . 7 10 2 Ballistic Gun 6 | . 27 28 27 24 12 1 . . . . . 1 9 11 2 . . . 1 . . Ballistic Cannon 2 | . . . . . . . 6 13 6 10 3 . . 4 . . . . . . 8 Slashing Weapon 1 | . . . . . . . . . . . 1 . . . 3 5 5 5 5 1 3 Naked Turns 84 | . . . . . . . . . . . . . . . . . . . . 39 45 Heaviest Build 142 | 14 33 33 53 58 71 88 91 95 95 101 107 110 116 116 115 110 104 104 142 142 96 Greatest Support 155 | 20 20 20 20 20 80 80 16 16 82 82 82 112 112 84 100 105 100 100 100 155 26 Greatest Overweight (x) 33 | . 1 1 2 2 3 5 5 5 5 1 27 5 2 1 31 31 33 1 1 9 31 Average Overweight (x) 2 | . . 1 1 2 . 4 5 5 1 1 5 1 . 1 1 1 1 1 1 . 3 Largest Inventory Capacity 20 | . 15 15 20 20 20 20 20 20 20 20 20 20 20 20 20 20 20 20 20 20 5 Average Capacity 18 | . 10 15 15 20 20 20 20 20 20 20 20 20 20 20 20 20 20 20 20 19 5 Most Carried 20 | . 12 13 15 20 20 20 20 20 20 20 20 20 20 16 19 20 20 20 20 20 5 Average Carried 16 | . 8 12 14 18 19 19 19 19 19 19 17 19 19 14 15 19 19 20 20 15 2 Final Capacity 20 | 8 15 15 20 20 20 20 20 20 20 20 20 20 20 20 20 20 20 20 20 5 5 Final Carried 20 | 6 12 13 15 20 20 20 20 20 19 20 20 20 16 14 18 20 20 20 20 5 5 Class Distribution -------------------- 31% | Mutant 29% | Scavenger-Mutant 17% | Skirmisher 11% | Scavenger-Gunner 3% | Scavenger-Skirmisher 3% | Tank Dominant Class ---------------- Mutant | -10/Materials Mutant | -10/Mines Mutant | -10/Exiles Skirmisher | -9/Mines Skirmisher | -8/Materials Mutant | -7/Factory Mutant | -6/Factory Mutant | -6/Lower Caves Scavenger-Mutant | -6/Lower Caves Gunner | -5/Factory Scavenger-Mutant | -5/Upper Caves Scavenger-Mutant | -5/Upper Caves Scavenger-Mutant | -5/Warlord Scavenger-Gunner | -4/Proximity Caves Mutant | -4/Factory Mutant | -4/Waste Mutant | -4/Factory Mutant | -4/Upper Caves Tank | -4/Upper Caves Tank | -3/Research Mutant | -2/Research Resources | -11 -10 -10 -10 -9 -8 -7 -6 -6 -6 -5 -5 -5 -5 -4 -4 -4 -4 -4 -4 -3 -2 ----------- Run | Jun Mat Min Exi Min Mat Fac Fac Low Low Fac Upp Upp War Pro Fac Was Fac Upp Upp Res Res Matter Collected 6545 | 200 331 130 . 156 289 171 414 116 396 . 2078 467 255 214 90 181 . 69 75 548 365 Remotely . | . . . . . . . . . . . . . . . . . . . . . . Salvage Created 7609 | . 428 54 . 10 460 209 257 45 380 . 1687 187 522 244 376 . . . . 2335 415 Parts 315 | . 35 8 . . 19 8 15 4 11 . 46 7 22 17 11 . . . . 93 19 Haulers Intercepted 5 | . 1 . . . 2 . . . . . 1 . . . . . . . . 1 . Recyclers Shooed 5 | . . . . . 1 . . . . . . . . . 1 . . . . 2 1 Parts Field Recycled . | . . . . . . . . . . . . . . . . . . . . . . Retrieved Matter . | . . . . . . . . . . . . . . . . . . . . . . Parts Self-Destructed 84 | . . . . . . . . 4 3 . 45 7 . 14 . . . 4 7 . . Prevented 2 | . . . . . . . . . . . 2 . . . . . . . . . . Kills | -11 -10 -10 -10 -9 -8 -7 -6 -6 -6 -5 -5 -5 -5 -4 -4 -4 -4 -4 -4 -3 -2 ------- Run | Jun Mat Min Exi Min Mat Fac Fac Low Low Fac Upp Upp War Pro Fac Was Fac Upp Upp Res Res Combat Hostiles Destroyed 131 | . 13 . . 1 5 4 7 4 10 . 31 6 8 10 2 . . . . 23 7 Melee 1 | . . . . . . . 1 . . . . . . . . . . . . . . Guns 33 | . 7 . . . 5 1 . . . . 7 3 3 6 1 . . . . . . Cannons 52 | . . . . . . 3 6 4 8 . 15 . . 2 . . . . . 7 7 AOE 37 | . 6 . . 1 . . . . 2 . 6 3 3 2 1 . . . . 13 . Classes Destroyed 20 | . 4 1 . 1 3 1 1 . 2 . 3 . 2 . 2 . . . . . . Worker 10 | . . . . . 1 . . . . . . . . . 1 . . . . 7 1 Builder 11 | . . . . . . . . . . . . . . . 2 . . . . 8 1 Tunneler 3 | . . 3 . . . . . . . . . . . . . . . . . . . Hauler 5 | . 1 . . . 2 . . . . . 1 . . . . . . . . 1 . Recycler 7 | . . . . . 1 . 1 . . . . . . . 2 . . . . 2 1 Minesweeper 1 | . . . . . . . . . . . 1 . . . . . . . . . . Operator 1 | . . . . . . . . . . . . . . . 1 . . . . . . Watcher 6 | . 3 . . . . . . . . . . . . . . . . . . 3 . Swarmer 42 | . 6 . . . . . 4 4 . . 12 5 2 9 . . . . . . . Saboteur 1 | . . . . . . . . . . . . . 1 . . . . . . . . Grunt 39 | . 7 . . 1 3 1 . . 2 . 10 . 4 . . . . . . 11 . Brawler 4 | . . . . . . . . . . . 3 . . . . . . . . 1 . Duelist 3 | . . . . . . . . . . . 3 . . . . . . . . . . Sentry 11 | . . . . . 2 1 . . . . 2 . . 1 . . . . . 5 . Hunter 3 | . . . . . . . 1 . 1 . . . 1 . . . . . . . . Programmer 20 | . . . . . . 2 2 . . . . 1 . . 2 . . . . 6 7 Behemoth 1 | . . . . . . . . . . . 1 . . . . . . . . . . Assembled 1 | . . . . 1 . . . . . . . . . . . . . . . . . Surgeon 1 | . . . . . . . . . . . . . 1 . . . . . . . . Thug 7 | . . . . . . . . . 5 . . . 2 . . . . . . . . Savage 1 | . . . . . . . . . 1 . . . . . . . . . . . . Mutant 1 | . . . . . . . . . 1 . . . . . . . . . . . . Best Kill Streak 9 | . 4 2 . 1 5 2 4 4 6 . 9 5 3 5 4 . . . . 9 3 Combat Bots Only 9 | . 3 . . 1 4 2 4 4 6 . 9 5 3 5 1 . . . . 7 3 Max Kills in Single Turn 7 | . 4 1 . 1 1 1 1 1 1 . 2 2 1 2 1 . . . . 7 1 Gunslinging . | . . . . . . . . . . . . . . . . . . . . . . Exploded 5 | . 3 . . 1 . . . . 1 . 2 2 1 1 1 . . . . 5 . Melee 1 | . . . . . . . 1 . . . . . . . . . . . . . . Uniques/NPCs Destroyed . | . . . . . . . . . . . . . . . . . . . . . . Combat | -11 -10 -10 -10 -9 -8 -7 -6 -6 -6 -5 -5 -5 -5 -4 -4 -4 -4 -4 -4 -3 -2 -------- Run | Jun Mat Min Exi Min Mat Fac Fac Low Low Fac Upp Upp War Pro Fac Was Fac Upp Upp Res Res Damage Taken 16872 | . 387 16 . . 302 335 783 157 900 . 3056 296 2113 205 705 . 16 . . 4525 3076 Core 3431 | . 122 . . . . . 31 14 68 . 418 19 149 40 128 . . . . 991 1451 Absorbed by Shields 961 | . . . . . . . . . . . 270 . 96 234 101 . . . . 260 . Regen/Repaired (Parts) 429 | . . . . . 6 . . . . . . . 313 . . 110 . . . . . Core Remaining (%) 73 | 100 . . . 51 100 100 . . 86 . . . . 37 . . . . 88 23 . Volleys Fired 379 | . 37 5 . 3 27 17 31 6 39 . 87 8 16 11 21 . . . . 43 28 Largest 5 | . 2 2 . 1 2 2 2 2 2 . 3 3 3 3 3 . . . . 5 4 Hottest 475 | . 40 40 . 30 48 160 155 106 133 . 223 174 260 323 323 . . . . 475 311 Shots Fired 822 | . 71 10 . 3 54 34 61 13 78 . 194 17 29 33 29 . 1 1 1 98 95 Gun 336 | . 68 10 . . 54 6 . . . . 79 15 13 22 24 . 1 1 . 34 9 Cannon 441 | . . . . . . 28 61 13 69 . 105 . 6 8 . . . . 1 64 86 Launcher 45 | . 3 . . 3 . . . . 9 . 10 2 10 3 5 . . . . . . Special . | . . . . . . . . . . . . . . . . . . . . . . Kinetic 490 | . 68 10 . . 54 6 49 13 48 . 91 . 19 30 23 . . . . 14 65 Thermal 278 | . . . . . . 28 6 . 21 . 93 15 1 3 6 . 1 1 1 81 21 Explosive 13 | . 3 . . 3 . . . . 4 . 3 . . . . . . . . . . Electromagnetic 41 | . . . . . . . 6 . 5 . 7 2 9 . . . . . . 3 9 Robot Hit Streak 16 | . 7 5 . . 15 6 13 16 10 . 16 9 6 9 6 . . 1 . 14 5 Robot Miss Streak 9 | . 2 1 . . 2 3 3 1 2 . 3 2 1 3 4 . 1 . 1 9 5 Penetration Max 1 | . . . . . . . . . . . 1 . 1 . 1 . . . . . . Secondary Targets 1 | . . . . . . . . . . . 1 . . . . . . . . . . Max Gunslinging Chain 1 | . . . . . . . . . . . 1 . . . . . . . . . . Shots Hit Robots 530 | . 47 7 . . 40 19 38 9 51 . 145 10 14 16 20 . . 1 . 70 43 Core Hits 354 | . 25 3 . 11 18 8 11 4 24 . 61 8 30 12 12 . . . . 108 19 Critical Kills 2 | . . . . . . . . . . . 1 . 1 . . . . . . . . Critical Parts Destroyed 3 | . . . . . 1 . . . . . . . . . 2 . . . . . . Critical Strikes 28 | . . . . . 1 . 1 . 2 . 12 2 1 . 2 . . . . 1 6 Burn 8 | . . . . . . . . . . . 6 2 . . . . . . . . . Meltdown 1 | . . . . . . . . . . . 1 . . . . . . . . . . Destroy 4 | . . . . . 1 . . . . . . . 1 . 2 . . . . . . Blast 15 | . . . . . . . 1 . 2 . 5 . . . . . . . . 1 6 Melee Attacks 20 | . . . . . . . 2 . . . 14 . . . 3 . . . . . 1 Impact . | . . . . . . . . . . . . . . . . . . . . . . Slashing 10 | . . . . . . . 2 . . . 4 . . . 3 . . . . . 1 Piercing . | . . . . . . . . . . . . . . . . . . . . . . Sneak Attacks 4 | . . . . . . . . . . . 2 . . . 1 . . . . . 1 Combat Hostiles . | . . . . . . . . . . . . . . . . . . . . . . Follow-up Attacks . | . . . . . . . . . . . . . . . . . . . . . . Damage Inflicted 21829 | . 917 91 . 288 701 538 970 270 1824 . 4442 329 1326 583 1039 . 12 12 . 6369 2118 Guns 4650 | . 593 86 . . 701 91 . . . . 1303 224 183 256 491 . 12 12 . 577 121 Cannons 8828 | . . . . . . 425 930 270 1277 . 2143 . 124 144 . . . . . 1625 1890 Explosions 7782 | . 323 . . 286 . . . . 547 . 740 105 1019 183 448 . . . . 4131 . Melee 492 | . . . . . . . 40 . . . 256 . . . 100 . . . . . 96 Ramming 77 | . 1 5 . 2 . 22 . . . . . . . . . . . . . 36 11 Kinetic 8113 | . 593 86 . . 701 91 774 270 925 . 1756 . 307 400 486 . . . . 218 1506 Thermal 10216 | . . . . . . 425 79 . 352 . 1835 224 221 183 453 . 12 12 . 6036 384 Explosive 1175 | . 323 . . 286 . . . . 354 . 212 . . . . . . . . . . Electromagnetic 1756 | . . . . . . . 77 . 193 . 383 105 798 . . . . . . 79 121 Impact . | . . . . . . . . . . . . . . . . . . . . . . Slashing 492 | . . . . . . . 40 . . . 256 . . . 100 . . . . . 96 Piercing . | . . . . . . . . . . . . . . . . . . . . . . Highest Corruption 47 | . . . . . 2 1 1 1 5 . 12 45 47 . 9 9 9 9 9 25 3 Average Corruption 10 | . . . . . 1 1 1 1 1 . 11 25 46 . 8 9 9 9 9 14 2 Corruption Purged 8 | . . . . . 2 . 1 1 4 . . . . . . . . . . . . Corruption Blocked . | . . . . . . . . . . . . . . . . . . . . . . Effects 298 | . . . . . . 2 2 4 8 . 138 42 7 . 13 19 15 10 10 21 7 Message Errors 68 | . . . . . . 1 . 1 1 . 34 14 . . 1 6 3 3 1 2 1 Matter Fused 65 | . . . . . . . . 1 3 . 27 9 2 . 4 2 2 4 5 4 2 Heat Flow Errors 28 | . . . . . . 1 . 1 . . 13 4 2 . 2 1 1 1 1 1 . Energy Discharges 37 | . . . . . . . . . 1 . 17 5 . . 1 3 2 . 2 5 1 Parts Rejected 1 | . . . . . . . . . . . 1 . . . . . . . . . . Parts Fused 5 | . . . . . . . . . . . . . . . 1 2 2 . . . . Data Loss (minor) 41 | . . . . . . . 1 . 2 . 22 5 1 . 2 2 2 1 . 1 2 Data Loss (major) 17 | . . . . . . . . . . . 9 2 1 . 1 2 . . . 1 1 Misfires 17 | . . . . . . . . 1 1 . 6 1 1 . 1 . 1 1 1 3 . Alerts 10 | . . . . . . . . . . . 5 2 . . . 1 2 . . . . Misdirections 4 | . . . . . . . . . . . . . . . . . . . . 4 . Weapon Failures 5 | . . . . . . . 1 . . . 4 . . . . . . . . . . Overload Shots . | . . . . . . . . . . . . . . . . . . . . . . Overflow Damage 713 | . 21 . . 7 . 7 18 9 23 . 202 . . 19 117 . . . . 138 152 Projectiles 235 | . . . . . . . 18 9 11 . 29 . . . . . . . . 72 96 Explosions 219 | . 21 . . 7 . . . . 12 . 67 . . 19 27 . . . . 66 . Melee 259 | . . . . . . 7 . . . . 106 . . . 90 . . . . . 56 Knockbacks 55 | . . . . . . . 11 2 12 . 4 . 3 . . . . . . 4 19 Impact . | . . . . . . . . . . . . . . . . . . . . . . Kinetic 49 | . . . . . . . 11 2 12 . 4 . 2 . . . . . . 2 16 Secondary 6 | . . . . . . . . . . . . . 1 . . . . . . 2 3 Self-Inflicted Damage 844 | . 27 . . . . 11 . . 9 . 116 41 . . 78 . . . . 558 4 Shots 39 | . 1 . . . . . . . 1 . 5 2 . . 4 . . . . 26 . Rammed 6 | . . . . . . 1 . . . . . . . . . . . . . . 5 Targets Rammed 10 | . 1 1 . 1 . 1 . . . . . . . . . . . . . 1 5 Kicked 4 | . 1 1 . 1 . . . . . . . . . . . . . . . 1 . Crushed . | . . . . . . . . . . . . . . . . . . . . . . Highest Temperature 1006 | . 3 . . . 9 237 112 180 60 . 399 124 205 200 200 200 81 187 199 1006 875 Average Temperature 164 | . 2 . . . 4 93 53 118 18 . 107 72 93 120 122 108 50 104 80 290 207 Received Heat Transfer 2017 | . 183 9 . . 171 63 . . 279 . 531 . 193 . . . . . . 588 . Effects 39 | . . . . . . 3 . . . . . . . 1 . . . . . 25 10 Shutdowns 3 | . . . . . . . . . . . . . . . . . . . . . 3 Energy Bleed 2 | . . . . . . . . . . . . . . 1 . . . . . 1 . Interference 11 | . . . . . . 3 . . . . . . . . . . . . . 8 . Matter Decay 3 | . . . . . . . . . . . . . . . . . . . . 3 . Short Circuit 3 | . . . . . . . . . . . . . . . . . . . . 3 . Damage (minor) 6 | . . . . . . . . . . . . . . . . . . . . 5 1 Damage (major) 7 | . . . . . . . . . . . . . . . . . . . . 3 4 Damage (core) 4 | . . . . . . . . . . . . . . . . . . . . 2 2 Siege Activations . | . . . . . . . . . . . . . . . . . . . . . . Robots Corrupted 2 | . . . . . . . . . . . . . 2 . . . . . . . . Combat Hostiles 2 | . . . . . . . . . . . . . 2 . . . . . . . . Parts Fried 7 | . . . . . . . 1 . . . 1 . 5 . . . . . . . . Impact Corruptions 2 | . . . . . . 1 . . . . . . . . . . . . . 1 . Robots Melted 6 | . . . . . . . . . . . 3 . . . . . . . . 3 . Combat Hostiles 6 | . . . . . . . . . . . 3 . . . . . . . . 3 . Parts Melted 34 | . . . . . . 1 . . 1 . 8 2 . . 1 . . . . 21 . Heat Transferred 15014 | . . . . . . 750 150 . 700 . 3401 518 335 160 654 . 37 37 . 7939 333 Parts Sabotaged 1 | . . . . . . . . . . . . . . . . . . . . 1 . Parts Stolen . | . . . . . . . . . . . . . . . . . . . . . . Parts Stripped . | . . . . . . . . . . . . . . . . . . . . . . Power Chain Reactions 6 | . . . . . . . . . . . 2 . 4 . . . . . . . . Missiles Intercepted . | . . . . . . . . . . . . . . . . . . . . . . Alert | -11 -10 -10 -10 -9 -8 -7 -6 -6 -6 -5 -5 -5 -5 -4 -4 -4 -4 -4 -4 -3 -2 ------- Run | Jun Mat Min Exi Min Mat Fac Fac Low Low Fac Upp Upp War Pro Fac Was Fac Upp Upp Res Res Peak Influence 815 | . 395 129 . 12 150 116 159 . . 24 . . . . 218 14 60 . . 815 521 Initial 450 | . . 114 . . . . . . . . . . . . . 14 . . . 242 450 Average 141 | . 234 41 . 3 43 24 50 . . 3 . . . . 113 9 9 . . 519 378 Maximum Alert Level 3 | . 1 . . . . . . . . . . . . . 1 . . . . 3 2 Low Security (%) 69 | . 27 100 . 100 100 100 100 . . 100 . . . . 61 100 100 . . . . Level 1 14 | . 72 . . . . . . . . . . . . . 38 . . . . 16 49 Level 2 13 | . . . . . . . . . . . . . . . . . . . . 72 50 Level 3 1 | . . . . . . . . . . . . . . . . . . . . 10 . Level 4 . | . . . . . . . . . . . . . . . . . . . . . . Level 5 . | . . . . . . . . . . . . . . . . . . . . . . High Security . | . . . . . . . . . . . . . . . . . . . . . . Max Security . | . . . . . . . . . . . . . . . . . . . . . . Squads Dispatched 23 | . 2 . . . 1 1 2 . . . . . . . 2 . . . . 9 6 Investigation 5 | . 1 . . . . . 1 . . . . . . . . . . . . 2 1 Extermination 8 | . . . . . . 1 1 . . . . . . . . . . . . 2 4 Reinforcement 7 | . 1 . . . 1 . . . . . . . . . 2 . . . . 2 1 Assault 1 | . . . . . . . . . . . . . . . . . . . . 1 . Garrison 2 | . . . . . . . . . . . . . . . . . . . . 2 . Intercept . | . . . . . . . . . . . . . . . . . . . . . . Searches Triggered . | . . . . . . . . . . . . . . . . . . . . . . Construction Impeded 4 | . . . . . . . . . . . . . . . 1 . . . . 2 1 Haulers Reinforced . | . . . . . . . . . . . . . . . . . . . . . . Active Scanning Responses . | . . . . . . . . . . . . . . . . . . . . . . Cargo Convoy Interrupts 1 | . . . . . . . 1 . . . . . . . . . . . . . . Stealth | -11 -10 -10 -10 -9 -8 -7 -6 -6 -6 -5 -5 -5 -5 -4 -4 -4 -4 -4 -4 -3 -2 --------- Run | Jun Mat Min Exi Min Mat Fac Fac Low Low Fac Upp Upp War Pro Fac Was Fac Upp Upp Res Res Distress Signals 9 | . 1 . . . 4 2 . . . . . . . . . . . . . . 2 Communications Jammed . | . . . . . . . . . . . . . . . . . . . . . . Distress Signals . | . . . . . . . . . . . . . . . . . . . . . . Times Spotted 262 | . 19 1 . 3 15 7 7 3 12 1 38 6 56 10 2 . 2 2 5 49 24 Peak Tracking Total 15 | . 4 1 . 4 5 3 4 3 5 1 9 5 15 5 2 . 1 2 5 9 13 Tactical Retreats 19 | . . . . . 2 1 . . . . 5 . 2 . . . . . . 5 4 Traps | -11 -10 -10 -10 -9 -8 -7 -6 -6 -6 -5 -5 -5 -5 -4 -4 -4 -4 -4 -4 -3 -2 ------- Run | Jun Mat Min Exi Min Mat Fac Fac Low Low Fac Upp Upp War Pro Fac Was Fac Upp Upp Res Res Traps Triggered 9 | . . . . 1 . 1 . . . . . . 3 . 1 . . . . 3 . Indirectly . | . . . . . . . . . . . . . . . . . . . . . . Trap Hack Attempts . | . . . . . . . . . . . . . . . . . . . . . . Triggered . | . . . . . . . . . . . . . . . . . . . . . . Disarmed . | . . . . . . . . . . . . . . . . . . . . . . Reprogrammed . | . . . . . . . . . . . . . . . . . . . . . . Reused . | . . . . . . . . . . . . . . . . . . . . . . Traps Extracted . | . . . . . . . . . . . . . . . . . . . . . . Installed . | . . . . . . . . . . . . . . . . . . . . . . Triggered 11 | . . . . . . . 1 . . . 2 . 8 . . . . . . . . Most Traps Carried 6 | . . . . 5 1 . . . . . 6 . . . . . . . . . . Machines | -11 -10 -10 -10 -9 -8 -7 -6 -6 -6 -5 -5 -5 -5 -4 -4 -4 -4 -4 -4 -3 -2 ---------- Run | Jun Mat Min Exi Min Mat Fac Fac Low Low Fac Upp Upp War Pro Fac Was Fac Upp Upp Res Res Machines Disabled 11 | . 3 . . . . . 1 . . . . . . . 5 . . . . 1 1 Max in Single Turn 5 | . 2 . . . . . 1 . . . . . . . 5 . . . . 1 1 Machines Repaired . | . . . . . . . . . . . . . . . . . . . . . . Machines Sabotaged . | . . . . . . . . . . . . . . . . . . . . . . Overloaded Fab Kills . | . . . . . . . . . . . . . . . . . . . . . . Hacking | -11 -10 -10 -10 -9 -8 -7 -6 -6 -6 -5 -5 -5 -5 -4 -4 -4 -4 -4 -4 -3 -2 --------- Run | Jun Mat Min Exi Min Mat Fac Fac Low Low Fac Upp Upp War Pro Fac Was Fac Upp Upp Res Res Machines Accessed 26 | . 5 . 1 1 1 2 3 . 2 2 . . 1 . 2 . 2 . 1 1 2 Terminals 13 | . 5 . . . . 2 1 . . 1 . . . . 2 . 1 . . 1 . Fabricators 1 | . . . . . . . . . . 1 . . . . . . . . . . . Repair Stations 2 | . . . . . 1 . . . . . . . . . . . 1 . . . . Recycling Units 1 | . . . . . . . . . . . . . . . . . . . . . 1 Scanalyzers 2 | . . . . . . . 2 . . . . . . . . . . . . . . Garrison Access 1 | . . . . . . . . . . . . . . . . . . . . . 1 Total Hacks 80 | . 16 . 23 1 2 4 11 . 3 3 . . 1 . 5 . 5 . 1 1 4 Successful 50 | . 8 . 23 1 2 2 4 . 3 1 . . 1 . 2 . 1 . 1 1 . Failed 30 | . 8 . . . . 2 7 . . 2 . . . . 3 . 4 . . . 4 Catastrophic 8 | . 4 . . . . . 2 . . 1 . . . . . . . . . . 1 Database Lockouts . | . . . . . . . . . . . . . . . . . . . . . . Manual 6 | . 3 . 1 . . . . . . . . . 1 . 1 . . . . . . Terminals 32 | . 16 . . . . 4 2 . . 2 . . . . 5 . 2 . . 1 . Fabricators 1 | . . . . . . . . . . 1 . . . . . . . . . . . Repair Stations 5 | . . . . . 2 . . . . . . . . . . . 3 . . . . Recycling Units 2 | . . . . . . . . . . . . . . . . . . . . . 2 Scanalyzers 9 | . . . . . . . 9 . . . . . . . . . . . . . . Garrison Access 2 | . . . . . . . . . . . . . . . . . . . . . 2 Terminal Hacks 41 | . 5 . 23 1 . 2 . . 3 1 . . 1 . 2 . 1 . 1 1 . Record 26 | . . . 23 . . . . . 2 . . . . . 1 . . . . . . Robot Analysis 2 | . 1 . . . . . . . . 1 . . . . . . . . . . . Prototype ID Bank 1 | . . . . . . . . . . . . . . . 1 . . . . . . Open Door 4 | . . . . 1 . . . . 1 . . . 1 . . . . . 1 . . Open DSF 4 | . . . . . . 2 . . . . . . . . . . 1 . . 1 . Branch Access Points 1 | . 1 . . . . . . . . . . . . . . . . . . . . Scanalyzer Index 1 | . 1 . . . . . . . . . . . . . . . . . . . . Maintenance Status 1 | . 1 . . . . . . . . . . . . . . . . . . . . Zone Layout 1 | . 1 . . . . . . . . . . . . . . . . . . . . Fabricator Hacks . | . . . . . . . . . . . . . . . . . . . . . . Repair Station Hacks 2 | . . . . . 2 . . . . . . . . . . . . . . . . Scan Component 1 | . . . . . 1 . . . . . . . . . . . . . . . . Repair 1 | . . . . . 1 . . . . . . . . . . . . . . . . Recycling Unit Hacks . | . . . . . . . . . . . . . . . . . . . . . . Scanalyzer 4 | . . . . . . . 4 . . . . . . . . . . . . . . Insert Component 1 | . . . . . . . 1 . . . . . . . . . . . . . . Analyze 3 | . . . . . . . 3 . . . . . . . . . . . . . . Garrison Access Hacks . | . . . . . . . . . . . . . . . . . . . . . . Unauthorized Hacks 3 | . 3 . . . . . . . . . . . . . . . . . . . . Terminals 3 | . 3 . . . . . . . . . . . . . . . . . . . . Botnet 3 | . 3 . . . . . . . . . . . . . . . . . . . . Fabricators . | . . . . . . . . . . . . . . . . . . . . . . Repair Stations . | . . . . . . . . . . . . . . . . . . . . . . Recycling Units . | . . . . . . . . . . . . . . . . . . . . . . Scanalyzers . | . . . . . . . . . . . . . . . . . . . . . . Garrison Access . | . . . . . . . . . . . . . . . . . . . . . . Data Cores Recovered . | . . . . . . . . . . . . . . . . . . . . . . Used . | . . . . . . . . . . . . . . . . . . . . . . Hacking Detections 18 | . 5 . . . 1 1 3 . . 2 . . . . 2 . 1 . . 1 2 Full Trace Events 4 | . 2 . . . . . 1 . . . . . . . . . . . . . 1 Feedback Events . | . . . . . . . . . . . . . . . . . . . . . . Feedback Blocked . | . . . . . . . . . . . . . . . . . . . . . . Robot Schematics Acquired . | . . . . . . . . . . . . . . . . . . . . . . Robots Built . | . . . . . . . . . . . . . . . . . . . . . . Authchips . | . . . . . . . . . . . . . . . . . . . . . . Time . | . . . . . . . . . . . . . . . . . . . . . . Total Robot Build Rating . | . . . . . . . . . . . . . . . . . . . . . . Part Schematics Acquired 1 | . . . . . . . 1 . . . . . . . . . . . . . . Parts Built . | . . . . . . . . . . . . . . . . . . . . . . Authchips . | . . . . . . . . . . . . . . . . . . . . . . Time . | . . . . . . . . . . . . . . . . . . . . . . Total Part Build Rating . | . . . . . . . . . . . . . . . . . . . . . . Parts Repaired 1 | . . . . . 1 . . . . . . . . . . . . . . . . Time 44 | . . . . . 44 . . . . . . . . . . . . . . . . Parts Recycled . | . . . . . . . . . . . . . . . . . . . . . . Recycled Matter . | . . . . . . . . . . . . . . . . . . . . . . Retrieved Matter . | . . . . . . . . . . . . . . . . . . . . . . Retrieved Components . | . . . . . . . . . . . . . . . . . . . . . . Parts Scanalyzed 1 | . . . . . . . 1 . . . . . . . . . . . . . . Part Schematics Acquired 1 | . . . . . . . 1 . . . . . . . . . . . . . . Parts Damaged . | . . . . . . . . . . . . . . . . . . . . . . Bothacking | -11 -10 -10 -10 -9 -8 -7 -6 -6 -6 -5 -5 -5 -5 -4 -4 -4 -4 -4 -4 -3 -2 ------------ Run | Jun Mat Min Exi Min Mat Fac Fac Low Low Fac Upp Upp War Pro Fac Was Fac Upp Upp Res Res Used RIF Installer . | . . . . . . . . . . . . . . . . . . . . . . Robots Hacked . | . . . . . . . . . . . . . . . . . . . . . . Non-combat . | . . . . . . . . . . . . . . . . . . . . . . Combat . | . . . . . . . . . . . . . . . . . . . . . . Robot Hacks Applied . | . . . . . . . . . . . . . . . . . . . . . . Relay Couplers Released 4 | . . . . . . . 4 . . . . . . . . . . . . . . Programmers 4 | . . . . . . . 4 . . . . . . . . . . . . . . Fabnet Peak Effective % . | . . . . . . . . . . . . . . . . . . . . . . Robots Rewired 2 | . . . . . . . . . . . 2 . . . . . . . . . . Allies Hacked 5 | . . . . . . . . . . . . . . . . . . . . 5 . Hacks Repelled . | . . . . . . . . . . . . . . . . . . . . . . Allies | -11 -10 -10 -10 -9 -8 -7 -6 -6 -6 -5 -5 -5 -5 -4 -4 -4 -4 -4 -4 -3 -2 -------- Run | Jun Mat Min Exi Min Mat Fac Fac Low Low Fac Upp Upp War Pro Fac Was Fac Upp Upp Res Res Total Allies 25 | . . 3 . . . . . . . . 2 . . . . 20 . . . . . Largest Group 20 | . . 3 3 3 2 . . . . . 2 . . . . 20 19 19 17 14 . Highest-Rated Group 787 | . . 40 40 40 24 . . . . . 59 . . . . 787 758 757 707 582 . Highest-Rated Ally 50 | . . 16 16 16 16 . . . . . 30 . . . . 50 50 50 50 46 . Total Orders 4 | . . . . 4 . . . . . . . . . . . . . . . . . STAY 2 | . . . . 2 . . . . . . . . . . . . . . . . . FOLLOW 2 | . . . . 2 . . . . . . . . . . . . . . . . . Ally Attacks 185 | . . . . 26 10 . . . . . 17 . . . . . 16 12 21 83 . Total Damage 3891 | . . . . 253 79 . . . . . 398 . . . . . 265 310 534 2052 . Kills 31 | . . . . 6 2 . . . . . 1 . . . . . 2 4 6 10 . Allies Corrupted 2 | . . . . . . . . . . . . . . . . . . . . 2 . Allies Melted 2 | . . . . . . . . . . . . . 1 . . . . . . 1 . Intel | -11 -10 -10 -10 -9 -8 -7 -6 -6 -6 -5 -5 -5 -5 -4 -4 -4 -4 -4 -4 -3 -2 ------- Run | Jun Mat Min Exi Min Mat Fac Fac Low Low Fac Upp Upp War Pro Fac Was Fac Upp Upp Res Res Robot Analysis Total 2 | . 1 . . . . . . . . 1 . . . . . . . . . . . Derelict Logs Recovered 12 | . . 2 . . . . . 2 2 . 2 1 . 1 . . . 1 1 . . Drone Launches . | . . . . . . . . . . . . . . . . . . . . . . Drone Recoveries . | . . . . . . . . . . . . . . . . . . . . . . Exploration | -11 -10 -10 -10 -9 -8 -7 -6 -6 -6 -5 -5 -5 -5 -4 -4 -4 -4 -4 -4 -3 -2 ------------- Run | Jun Mat Min Exi Min Mat Fac Fac Low Low Fac Upp Upp War Pro Fac Was Fac Upp Upp Res Res Turns Passed 22331 | . 725 1132 910 1257 908 824 736 436 2801 472 4312 915 1440 848 585 601 508 325 347 1172 1077 Spaces Moved 9923 | 1 412 583 455 462 419 349 350 233 1066 191 1663 346 801 318 265 286 234 172 177 669 471 Core 429 | . . . . . . . . . . . 1 . . . 6 1 1 . . 74 346 Treads 3066 | . . . . . 396 50 . . 942 191 62 267 801 318 39 . . . . . . Legs 3933 | 1 412 583 455 462 . . . . . . 311 79 . . 178 285 233 172 177 585 . Wheels 2437 | . . . . . 23 299 350 233 124 . 1289 . . . 42 . . . . 10 67 Hover 58 | . . . . . . . . . . . . . . . . . . . . . 58 Flight . | . . . . . . . . . . . . . . . . . . . . . . Fastest Speed 50 | 120 120 190 190 260 145 170 175 175 175 243 130 160 160 253 120 120 120 190 190 50 50 Average Speed 201 | 120 137 190 196 260 169 174 175 175 238 243 236 252 164 253 183 200 214 190 190 118 196 Slowest Speed 1700 | 120 190 190 260 260 330 250 175 175 490 243 1400 470 360 253 1600 1600 1700 190 190 330 1600 Overloaded Moves . | . . . . . . . . . . . . . . . . . . . . . . Propulsion Burnouts . | . . . . . . . . . . . . . . . . . . . . . . Robots Hopped . | . . . . . . . . . . . . . . . . . . . . . . Cave-ins Triggered 1 | . . . . . . . . . . . . . . . 1 . . . . . . Exploration Rate (%) 42 | 2 59 99 89 60 24 11 8 34 94 3 97 47 76 51 6 91 7 38 16 11 11 Regions Visited 21 Branch Regions 11 Pre-discovered Areas 5 | . . 1 1 . . . . . . . 1 . . 1 . . . . 1 . . Known Exits Taken 3 | . 1 . . . 1 . . 1 . . . . . . . . . . . . . Unknown Exits Taken 16 | 1 . 1 1 1 . 1 1 . 1 1 1 1 1 1 . . 1 1 1 1 . Scrap Searched 12 | . . 1 . 1 . . . 1 3 . 4 2 . . . . . . . . . Spaces Dug 2 | . . . . . . . . . . . . . . . 2 . . . . . . Terrain Destroyed 252 | . 11 . . 15 . . 7 4 23 . 61 . 5 19 51 . . . 1 19 36 Melee 2 | . . . . . . . . . . . . . . . 2 . . . . . . Projectile 116 | . . . . . . . 7 4 11 . 26 . 3 7 2 . . . 1 19 36 AOE 134 | . 11 . . 15 . . . . 12 . 35 . 2 12 47 . . . . . . Terrain Rammed . | . . . . . . . . . . . . . . . . . . . . . . Walls Destroyed . | . . . . . . . . . . . . . . . . . . . . . . Machines Disabled . | . . . . . . . . . . . . . . . . . . . . . . Actions | -11 -10 -10 -10 -9 -8 -7 -6 -6 -6 -5 -5 -5 -5 -4 -4 -4 -4 -4 -4 -3 -2 --------- Run | Jun Mat Min Exi Min Mat Fac Fac Low Low Fac Upp Upp War Pro Fac Was Fac Upp Upp Res Res Total 11669 | . 503 597 473 517 573 529 422 253 1267 199 1927 376 909 338 335 322 243 171 187 962 566 Wait 668 | . 21 8 . 23 82 137 17 7 141 2 2 . 34 4 11 . . . . 175 4 Move 9903 | . 411 582 454 461 418 348 349 232 1065 190 1662 345 800 317 265 285 233 171 176 668 471 Hop . | . . . . . . . . . . . . . . . . . . . . . . Pick Up 205 | . 13 1 4 15 12 9 7 2 5 3 41 6 14 2 16 11 1 . . 22 21 Fast Attach 46 | . . . 5 1 7 . 1 . 1 . 4 4 3 . . 4 2 . 7 1 6 Attach 134 | . 1 . . 3 4 2 3 . 4 1 28 5 8 4 11 4 . . . 33 23 Detach 12 | . . . . . . . . . . . 5 1 1 . 1 1 . . . 1 2 Swap 71 | . 9 . 2 2 6 7 7 3 7 2 13 1 8 . . 1 1 . . 1 1 Drop 175 | . 10 . 8 8 17 8 6 3 5 1 24 6 25 . 7 16 6 . 4 17 4 Fire 379 | . 37 5 . 3 27 17 31 6 39 . 87 8 16 11 21 . . . . 43 28 Melee 19 | . . . . . . . 1 . . . 14 . . . 3 . . . . . 1 Ram 6 | . . . . . . 1 . . . . . . . . . . . . . . 5 Kick 4 | . 1 1 . 1 . . . . . . . . . . . . . . . 1 . Crush . | . . . . . . . . . . . . . . . . . . . . . . Escape Stasis . | . . . . . . . . . . . . . . . . . . . . . . Rewire 47 | . . . . . . . . . . . 47 . . . . . . . . . . Trap . | . . . . . . . . . . . . . . . . . . . . . . Miscellaneous . | . . . . . . . . . . . . . . . . . . . . . . Route ------- -11/Junkyard -10/Materials (discovered 2 exits: [*Mat] / *Min) -10/Mines (discovered 3 exits: [*Mat x2] / *Exi) -10/Exiles -9/Mines -8/Materials (discovered 2 exits: *Fac x2) -7/Factory -6/Factory (discovered 2 exits: *Fac / [*Low]) -6/Lower Caves -6/Lower Caves (discovered 2 exits: *Fac / [*Dat]) -5/Factory -5/Upper Caves -5/Upper Caves (discovered 2 exits: *Fac / *War) -5/Warlord -4/Proximity Caves -4/Factory -4/Waste -4/Factory -4/Upper Caves -4/Upper Caves -3/Research -2/Research History --------- Turn | Location | Event 1 | -11/Junkyard | Discovered new exit (range 0) 1 | -11/Junkyard | Entered Materials 276 | -10/Materials | Discovered new exit (range 11) 311 | -10/Materials | Build established: Mutant 458 | -10/Materials | Identified exit to Mines 516 | -10/Materials | Discovered new exit (range 16) 726 | -10/Materials | Entered Mines 758 | -10/Mines | Met a Derelict bent on vengeance 840 | -10/Mines | Learned location of Storage (-8) 1170 | -10/Mines | Learned 4 Materials zone layouts 1351 | -10/Mines | Assisted by bots powering up and referring to "LRC-V3" 1429 | -10/Mines | Discovered new exit (range 6) 1605 | -10/Mines | Discovered new exit (range 8) 1845 | -10/Mines | Deemed a non-threat by the Exiles lab entrance 1847 | -10/Mines | Discovered new exit (range 5) 1858 | -10/Mines | Entered Exiles 1858 | -10/Exiles | Accompanied by 3 allies 1927 | -10/Exiles | Met 8R-AWN 1963 | -10/Exiles | Met EX-HEX 2025 | -10/Exiles | Met EX-BIN 2054 | -10/Exiles | Aligned with FarCom system 2056 | -10/Exiles | Given EX-Vault access code 2105 | -10/Exiles | Opened EX-Vault 2119 | -10/Exiles | Found Prototype Storage 2119 | -10/Exiles | Identified Superbattery 2125 | -10/Exiles | Found Prototype Processor 2125 | -10/Exiles | Identified Modified TNC 2206 | -10/Exiles | Warned to stay clear of 0b10 Research branches 2263 | -10/Exiles | Met EX-DEC 2299 | -10/Exiles | Learned location of Zion (-7) 2379 | -10/Exiles | Visited The Gauntlet 2726 | -10/Exiles | Discovered new exit (range 14) 2768 | -10/Exiles | Left Exiles lab with Superbattery 2768 | -10/Exiles | Entered Mines 2768 | -9/Mines | Accompanied by 3 allies 2769 | -9/Mines | Assembled infested the area 3134 | -9/Mines | Build established: Skirmisher 3230 | -9/Mines | Found a hidden stash of uninstalled traps 3684 | -9/Mines | Met a Derelict who couldn't figure out how to use a Trap Extractor 3835 | -9/Mines | Discovered new exit (range 12) 4025 | -9/Mines | Entered Materials 4025 | -8/Materials | Accompanied by 2 allies 4025 | -8/Materials | Evolved 4 slots: Propulsion x2, Utility x2 4026 | -8/Materials | Identified exit to Factory 4913 | -8/Materials | Repaired System Restoration Module 4933 | -8/Materials | Entered Factory 4933 | -7/Factory | Evolved 2 slots: Utility x2 4949 | -7/Factory | Identified exit to DSF 5613 | -7/Factory | Build established: Mutant 5720 | -7/Factory | Discovered new exit (range 16) 5757 | -7/Factory | Entered another Factory area 5757 | -6/Factory | Evolved 2 slots: Utility x2 6260 | -6/Factory | Discovered new exit (range 14) 6465 | -6/Factory | Discovered new exit (range 6) 6469 | -6/Factory | Cargo convoy interrupted 6493 | -6/Factory | Entered Lower Caves 6554 | -6/Lower Caves | Identified exit to Lower Caves 6691 | -6/Lower Caves | Learned Factory garrison access intel 6929 | -6/Lower Caves | Entered another Lower Caves area 7345 | -6/Lower Caves | Build established: Scavenger-Mutant 7525 | -6/Lower Caves | Learned Armory emergency access door positions 7677 | -6/Lower Caves | Learned Factory terminal intel 7866 | -6/Lower Caves | Discovered new exit (range 10) 8299 | -6/Lower Caves | Learned Factory emergency access door positions 8716 | -6/Lower Caves | Attacked by a faux Warlord 9369 | -6/Lower Caves | Discovered new exit (range 15) 9730 | -6/Lower Caves | Entered Factory 9730 | -5/Factory | Evolved 2 slots: Power x1, Weapon x1 9732 | -5/Factory | Loaded intel: 26 terminal locations 9733 | -5/Factory | Loaded intel: 4 garrison access locations 10087 | -5/Factory | Discovered new exit (range 6) 10202 | -5/Factory | Entered Upper Caves 10273 | -5/Upper Caves | Attracted the attention of an 0b10 checkpoint 10518 | -5/Upper Caves | Build established: Scavenger-Gunner 10837 | -5/Upper Caves | Build established: Gunner 10879 | -5/Upper Caves | Attracted the attention of an 0b10 outpost 10909 | -5/Upper Caves | System corruption reached 10% 10954 | -5/Upper Caves | Lost 9 parts (2p3n1u3w) 10967 | -5/Upper Caves | Destroyed 9 combat bots 11283 | -5/Upper Caves | Build established: Skirmisher 11420 | -5/Upper Caves | Spotted B-75 Beast 11460 | -5/Upper Caves | Destroyed B-75 Beast 11890 | -5/Upper Caves | Lost 5 parts (1n1u3w) 12154 | -5/Upper Caves | Build established: Scavenger-Mutant 12387 | -5/Upper Caves | Learned location of 1 exit from Factory 13507 | -5/Upper Caves | Encountered a Warlord checkpoint 13522 | -5/Upper Caves | Learned location of Armory (-4) 13800 | -5/Upper Caves | Found Imp. Powered Armor 13902 | -5/Upper Caves | Build established: Scavenger-Gunner 14477 | -5/Upper Caves | Discovered new exit (range 5) 14514 | -5/Upper Caves | Entered another Upper Caves area 14657 | -5/Upper Caves | Discovered new exit (range 11) 14812 | -5/Upper Caves | Build established: Scavenger-Mutant 14998 | -5/Upper Caves | System corruption reached 30% 15184 | -5/Upper Caves | Learned 8 Factory zone layouts 15387 | -5/Upper Caves | Discovered new exit (range 9) 15429 | -5/Upper Caves | Entered Warlord 15535 | -5/Warlord | System corruption cleaned by Quarantine Array 15889 | -5/Warlord | Found Prototype Energy Gun 16272 | -5/Warlord | Warlord's base attacked by MAIN.C 16622 | -5/Warlord | Warlord forces counterattacked 16668 | -5/Warlord | Spotted Executioner 16699 | -5/Warlord | Spotted Executioner 16813 | -5/Warlord | Spotted Executioner 16817 | -5/Warlord | Core integrity fell below 50% 16840 | -5/Warlord | Discovered new exit (range 12) 16869 | -5/Warlord | Entered Proximity Caves 16899 | -4/Proximity Caves | Lost 7 parts (1p2n4u) 17081 | -4/Proximity Caves | Build established: Scavenger-Gunner 17192 | -4/Proximity Caves | Attracted the attention of an 0b10 checkpoint 17555 | -4/Proximity Caves | Learned location of Testing (-2) 17694 | -4/Proximity Caves | Discovered new exit (range 8) 17717 | -4/Proximity Caves | Entered Factory 17717 | -4/Factory | Evolved 2 slots: Weapon x2 17718 | -4/Factory | Identified exit to Extension 17835 | -4/Factory | Crushed by falling debris 17867 | -4/Factory | Lost 5 parts (2n1u2w) 17920 | -4/Factory | Identified Plasma Storm 18269 | -4/Factory | Build established: Mutant 18302 | -4/Factory | Sucked down chute 18302 | -4/Factory | Entered Waste 18303 | -4/Waste | Joined by Warlord forces that had cleared the area 18343 | -4/Waste | Found Prototype Launcher 18343 | -4/Waste | Identified Gui. Micro-nuke Launcher 18628 | -4/Waste | Discovered new exit (range 13) 18903 | -4/Waste | Entered Factory 18903 | -4/Factory | Accompanied by 19 allies 18937 | -4/Factory | Identified exit to DSF 19334 | -4/Factory | Discovered new exit (range 16) 19411 | -4/Factory | Entered Upper Caves 19411 | -4/Upper Caves | Accompanied by 19 allies 19470 | -4/Upper Caves | Learned Research security intel 19708 | -4/Upper Caves | Discovered new exit (range 10) 19736 | -4/Upper Caves | Entered another Upper Caves area 19736 | -4/Upper Caves | Accompanied by 18 allies 20064 | -4/Upper Caves | Learned location of Quarantine (-3) 20066 | -4/Upper Caves | Discovered new exit (range 8) 20083 | -4/Upper Caves | Entered Research 20083 | -3/Research | Accompanied by 14 allies 20083 | -3/Research | Evolved 2 slots: Propulsion x2 20361 | -3/Research | Discovered new exit (range 12) 20632 | -3/Research | Lost 3 parts (1p1n1w) 20732 | -3/Research | Build established: Tank 20781 | -3/Research | System corruption reached 10% 20814 | -3/Research | Lost 4 parts (1p1n1u1w) 20907 | -3/Research | Destroyed 7 combat bots 20917 | -3/Research | Lost 4 parts (1p1n2u) 21079 | -3/Research | Garrison activated, responded to threat 21083 | -3/Research | First assault squad dispatched 21163 | -3/Research | Lost 6 parts (2p3n1u) 21195 | -3/Research | Build established: Skirmisher 21198 | -3/Research | Core integrity fell below 50% 21214 | -3/Research | Released all parts (9) 21244 | -3/Research | Lost 8 parts (2n4u2w) 21255 | -3/Research | Entered another Research area 21255 | -2/Research | Evolved 2 slots: Utility x2 21281 | -2/Research | Found Hvy. Reflective Plating 21517 | -2/Research | Build established: Mutant 21853 | -2/Research | Build established: Skirmisher 22091 | -2/Research | Lost 4 parts (1p2n1w) 22175 | -2/Research | Released all parts (4) 22180 | -2/Research | Core integrity fell below 50% 22221 | -2/Research | Core integrity fell below 20% 22229 | -2/Research | Lost 13 parts (1p2n6u4w) 22312 | -2/Research | Found Antimissile System 22332 | -2/Research | Destroyed by S-43 Plague with Heavy Machine Gun Last Messages --------------- 22231_ Slug penetrates Wall. 22234_ Slammed into H-88 Terminator. 22237_ Penetrated by Slug. 22237_ H-88 Terminator misfires. 22237_ Slug penetrates Wall. 22237_ Slug penetrates H-88 Terminator. 22237_ H-88 Terminator destroyed. 22240_ System corrupted: Substantial component data lost. 22240_ Penetrated by Slug. 22255_ ALERT: Rogue bot located, Programmers report to Research Zone 3W. 22264_ Connecting with Garrison Access... 22264_ ALERT: Suspicious activity at Garrison Access R002. Dispatching Investigation squad. 22267_ Drone sends a signal. 22273_ W-44 Eye sends out distress signal. 22278_ Slammed into K-01 Serf. 22290_ System corrupted: Matter fused (-7). 22312_ Acquired Antimissile System. 22314_ System corrupted: Component data lost. 22318_ W-44 Eye sends out distress signal. Map ----- +----------------------------------------------------+ | ??????????????????????????????????# #?????????? | | ??????????????????????????????????# #?????????? | | ??????????????????????????????????# #?????????? | | ??????????????????????????????????# #?????????? | | ??????????????????????????????????# #?????????? | | ??????????????????????????????????# ###+####??? | | ???????????????????????????######## #??? | | ????????????????????????????!! ?# #??? | | ????????????????????????????! ?# #??? | | ????????????????????????????? ??# ]] #? | | ????????????????????????????? ??# ]] #?? | | ?????????????????????????????#+#### #?? | | ???????????????????#########?# #### | | ???????????????????# ] #?# | | ???????????????????# ### | | ???????????????????# """ ## | | ???????????????????# """ + w | | ???????????????????# """ s## ########### | | ???????????????????# ss## #?????????# | | ???????????????????# ## #??????#### | | ???????????????????# #s +??????# | | ???????????????????# [ + #??????# | | ???????????????????# # #??????# | | ???????????????????# """ # #??????# | | ???????????????????# """ #+##+########??????# | | ???????????????????# "S @[#??????????????????# | | ???????????????????# """ #??????????????????# ! | | ???????????????????#] "" #??????????????????# | | ???????????????????# #??????????????????# | | ???????????????????# #??????????????????#### | | ???????????????????#+##+####?????????????????????? | | ?????????????????????????????????????????????????? | | ?????????????????????????????????????????????????? | | ?????????????????????????????????????????????????? | | ?????????????????????????????????????????????????? | | ?????????????????????????????????????????????????? | | ?????????????????????????????????????????????????? | | ?????????????????????????????????????????????????? | | ?????????????????????????????????????????????????? | | ????????????????????????????Yw????????H??????????? | | ?????????????????????????????????????????????????? | | ?????????????????????????????????????????????????? | | ?????????????????????????????????????????????????? | | ?????????????????????????????????????????????????? | | ?????????????????????????????????????????????????? | | ?????????????????????????????????????????????????? | | ?????????????????????????????????????????????????? | | ?????????????????????????????????????????????????? | | ?????????????????????????????????????????????????? | | ?????????????????????????????????????????????????? | +----------------------------------------------------+ Best States ------------- Heat Dissipation 106 Coolant Potential 100 Energy Generation 41 Energy Capacity 1780 Matter Stores 300 Matter Capacity 300 Sight Range 16 Robot Scan Range 14 Terrain Scan Range 16 Terrain Scan Density 210 Power Amplification 30 Base Temperature (-) 200 Armor Coverage 625 Resistance: KI 25 Resistance: TH 25 Resistance: EM 20 Weapon Cycling 15 Phase Shifting 15 Evasion (%) 70 Targeting Accuracy 8 Target Analysis 5 Armor Integrity Analysis 30 Recoil Reduction 6 Matter Filtering 50 Energy Filtering 30 Offensive Hacking 11 Item Schematics ----------------- Arm. Treads | -6/Factory | Scanalyzed Robot Schematics ------------------ None Fabricated ------------ Nothing Alien Tech Used ----------------- None Achievements -------------- None Challenges ------------ None Game ------ Seed AccelerationSlugStripper Manual? 0 Play Time 02:56:52 Cumulative 101.9 hours Start 2023.03.04 @ 08:40:51 End 2023.03.04 @ 11:38:17 Sessions 1 Manual Loads 0 Difficulty Rogue Special Mode None Game No. 80 Rogue 80 Adventurer 0 Explorer 0 Win Type - Total 0 Types 0/0/0/0/0/0/0/0/0 Lore% 47 Gallery% 60 Achievement% 40 Wizard Run 0 Options --------- ASCII 0 Keyboard 0 Movement Arrows Keybinds 1 Fullscreen 0 Font 16/Terminus Map View 76x50 Tactical HUD 1 Map Filters NONE Filters NONE Steam 1 RUN: f4bf8623-ff92-4ab8-81cc-306b17c7146a